lending/lending_fUSD_20251107
["ID","MTS","AMOUNT","RATE_DAILY","PERIOD"]
[393341724,1762493439289,-500.0,0.00017973,2]
[393341725,1762493439299,-214.84899531,0.00017973,2]
[393341726,1762493439308,-500.0,0.00017973,2]
[393341727,1762493439317,-167.42370191,0.00017973,2]
[393341728,1762493439326,-500.0,0.00017973,2]
[393341729,1762493439335,-516.70143918,0.00017973,2]
[393341730,1762493439344,-426.80169483,0.00017973,2]
[393341731,1762493439354,-274.37432305,0.00017973,2]
[393341732,1762493439363,-500.0,0.00017973,2]
[393341733,1762493439372,-500.0,0.00017973,2]
[393341734,1762493439381,-410.82232731,0.00017973,2]
[393341735,1762493439390,-500.0,0.00017973,2]
[393341736,1762493439399,-500.0,0.00017973,2]
[393341737,1762493439408,-151.0,0.00017989,2]
[393341738,1762493439417,-151.0,0.00017989,2]
[393341739,1762493439426,-151.0,0.00017989,2]
[393341740,1762493439435,-151.0,0.00017989,2]
[393341741,1762493439444,-151.0,0.00017989,2]
[393341742,1762493439454,-151.0,0.00017989,2]
[393341743,1762493439463,-151.0,0.00017989,2]
[393341744,1762493439473,-260.92709679,0.00017989,2]
[393341745,1762493439482,-151.0,0.00017989,2]
[393341746,1762493439491,-151.0,0.00017989,2]
[393341747,1762493439498,-151.0,0.00017989,2]
[393341748,1762493439508,-151.0,0.00017989,2]
[393341749,1762493439517,-151.0,0.00017989,2]
[393341750,1762493439526,-151.0,0.00017989,2]
[393341751,1762493439534,-151.0,0.00017989,2]
[393341752,1762493439544,-151.0,0.00017989,2]
[393341753,1762493439553,-151.0,0.00017989,2]
[393341754,1762493439562,-151.0,0.00017989,2]
[393341755,1762493439571,-151.0,0.00017989,2]
[393341756,1762493439580,-151.0,0.00017989,2]
[393341757,1762493439589,-151.0,0.00017989,2]
[393341758,1762493439598,-300.0,0.00017999,2]
[393341759,1762493439607,-300.0,0.00017999,2]
[393341760,1762493439617,-192.32,0.00018,2]
[393341761,1762493439627,-3860215.32094432,0.00018,2]
[393341762,1762493439636,-151.0,0.00018,2]
[393341763,1762493439645,-151.0,0.00018,2]
[393341764,1762493439654,-151.0,0.00018,2]
[393341765,1762493439663,-151.0,0.00018,2]
[393341766,1762493439672,-151.0,0.00018,2]
[393341767,1762493439681,-151.0,0.00018,2]
[393341768,1762493439691,-151.0,0.00018,2]
[393341769,1762493439700,-151.0,0.00018,2]
[393341770,1762493439709,-151.0,0.00018,2]
[393341771,1762493439718,-151.0,0.00018,2]
[393341772,1762493439729,-151.0,0.00018,2]
[393341773,1762493439739,-215.927753,0.00018,2]
[393341774,1762493439748,-161.113771,0.00018,2]
[393341775,1762493439757,-215.927753,0.00018,2]
[393341776,1762493439766,-215.927753,0.00018,2]
[393341777,1762493439776,-215.927753,0.00018,2]
[393341778,1762493439785,-151.0,0.00018,2]
[393341779,1762493439795,-151.0,0.00018,2]
[393341780,1762493439803,-151.0,0.00018,2]
[393341781,1762493439812,-325.61957,0.00018,2]
[393341782,1762493439822,-325.61957,0.00018,2]
[393341783,1762493439831,-325.61957,0.00018,2]
[393341784,1762493439841,-151.0,0.00018,2]
[393341785,1762493439850,-325.61957,0.00018,2]
[393341786,1762493439859,-444.177099,0.00018,2]
[393341787,1762493439868,-444.177099,0.00018,2]
[393341788,1762493439878,-151.0,0.00018,2]
[393341789,1762493439887,-444.177099,0.00018,2]
[393341790,1762493439896,-151.0,0.00018,2]
[393341791,1762493439906,-444.177099,0.00018,2]
[393341792,1762493439915,-151.0,0.00018,2]
[393341793,1762493439924,-151.0,0.00018,2]
[393341794,1762493439933,-160.10830058,0.00018073,2]
[393341795,1762493439942,-500.81946819,0.00018073,2]
[393341796,1762493439952,-546.44,0.00018082,2]
[393341797,1762493439961,-1000.0,0.00018082,2]
[393341798,1762493439971,-5000.0,0.00018093,2]
[393341799,1762493439981,-1000.0,0.00018093,2]
[393341800,1762493439990,-244.11334699,0.00018106,2]
[393341801,1762493439999,-2351.0,0.00018149,2]
[393341802,1762493440008,-500.0,0.00018173,2]
[393341803,1762493440017,-500.0,0.00018173,2]
[393341804,1762493440027,-300.0,0.00018192,2]
[393341805,1762493440036,-300.0,0.00018192,2]
[393341806,1762493440048,-500.0,0.00018192,2]
[393341807,1762493440057,-500.0,0.00018192,2]
[393341808,1762493440066,-500.0,0.00018192,2]
[393341809,1762493440077,-33266.2593,0.00018193,2]
[393341810,1762493440087,-420000.0,0.00018193,2]
[393341811,1762493440096,-1000.0,0.00018193,2]
[393341812,1762493440105,-500.0,0.00018218,2]
[393341813,1762493440116,-166.66,0.00018294,2]
[393341814,1762493440125,-500.0,0.00018321,2]
[393341815,1762493440135,-168.23721633,0.00018321,2]
[393341816,1762493440144,-500.0,0.00018321,2]
[393341817,1762493440153,-500.0,0.00018321,2]
[393341818,1762493440163,-620.64256179,0.00018321,2]
[393341819,1762493440172,-500.0,0.00018321,2]
[393341820,1762493440181,-503.03575028,0.00018321,2]
[393341821,1762493440191,-500.0,0.00018321,2]
[393341822,1762493440200,-546.44,0.00018356,2]
[393341823,1762493440209,-477.99034883,0.00018399,2]
[393341824,1762493440219,-1000.0,0.00018521,2]
[393341825,1762493440230,-525.88457215,0.00018521,2]
[393341826,1762493440239,-1052.1894013,0.00018521,2]
[393341829,1762493440248,-1000.0,0.00018521,2]
[393341831,1762493440257,-1000.0,0.00018521,2]
[393341833,1762493440266,-506.69181721,0.00018521,2]
[393341835,1762493440275,-1000.0,0.00018521,2]
[393341836,1762493440284,-1000.0,0.00018521,2]
[393341837,1762493440293,-1000.0,0.00018521,2]
[393341838,1762493440301,-1000.0,0.00018521,2]
[393341839,1762493440310,-501.17210201,0.00018521,2]
[393341840,1762493440319,-1000.0,0.00018521,2]
[393341841,1762493440328,-1000.0,0.00018521,2]
[393341842,1762493440338,-1000.0,0.00018521,2]
[393341843,1762493440347,-736.0,0.00018629,2]
[393341844,1762493440356,-546.44,0.0001863,2]
[393341845,1762493440366,-640.36804531,0.00018689,2]
[393341846,1762493440375,-638.23167784,0.00018721,2]
[393341847,1762493440385,-500.0,0.00018721,2]
[393341848,1762493440394,-1000.0,0.0001876,2]
[393341849,1762493440403,-512.33896105,0.00018773,2]
[393341850,1762493440412,-500.0,0.0001878,2]
[393341851,1762493440422,-500.0,0.0001878,2]
[393341852,1762493440431,-500.0,0.0001878,2]
[393341853,1762493440440,-505.50862562,0.0001878,2]
[393341854,1762493440449,-500.0,0.0001878,2]
[393341855,1762493440458,-500.2462784,0.0001878,2]
[393341856,1762493440467,-500.0,0.0001878,2]
[393341857,1762493440478,-500.0,0.0001878,2]
[393341858,1762493440487,-500.0,0.0001878,2]
[393341859,1762493440495,-500.0,0.0001878,2]
[393341860,1762493440505,-500.0,0.0001878,2]
[393341861,1762493440514,-150.07,0.000188,2]
[393341862,1762493440523,-150.07,0.000188,2]
[393341863,1762493440532,-150.07,0.000188,2]
[393341864,1762493440541,-150.07,0.000188,2]
[393341865,1762493440550,-150.07,0.000188,2]
[393341866,1762493440559,-150.07,0.000188,2]
[393341867,1762493440569,-150.07,0.000188,2]
[393341868,1762493440578,-150.07,0.000188,2]
[393341869,1762493440587,-150.07,0.000188,2]
[393341870,1762493440596,-150.07,0.000188,2]
[393341872,1762493440759,-150.07,0.000188,2]
[393341874,1762493440769,-150.07,0.000188,2]
[393341875,1762493440778,-150.07,0.000188,2]
[393341877,1762493440787,-150.07,0.000188,2]
[393341879,1762493440796,-150.07,0.000188,2]
[393341881,1762493440806,-150.07,0.000188,2]
[393341882,1762493440815,-150.07,0.000188,2]
[393341883,1762493440824,-150.07,0.000188,2]
[393341884,1762493440833,-150.07,0.000188,2]
[393341885,1762493440843,-150.07,0.000188,2]
[393341886,1762493440852,-150.07,0.000188,2]
[393341887,1762493440862,-150.07,0.000188,2]
[393341888,1762493440871,-150.07,0.000188,2]
[393341889,1762493440880,-150.07,0.000188,2]
[393341890,1762493440890,-150.07,0.000188,2]
[393341891,1762493440899,-150.07,0.000188,2]
[393341892,1762493440908,-150.07,0.000188,2]
[393341893,1762493440918,-150.07,0.000188,2]
[393341894,1762493440928,-150.07,0.000188,2]
[393341895,1762493440937,-150.07,0.000188,2]
[393341896,1762493440947,-150.07,0.000188,2]
[393341897,1762493440956,-150.07,0.000188,2]
[393341898,1762493440965,-150.07,0.000188,2]
[393341899,1762493440976,-150.07,0.000188,2]
[393341900,1762493440986,-150.07,0.000188,2]
[393341901,1762493440995,-150.07,0.000188,2]
[393341902,1762493441005,-150.07,0.000188,2]
[393341903,1762493441014,-150.07,0.000188,2]
[393341904,1762493441023,-150.07,0.000188,2]
[393341905,1762493441034,-150.07,0.000188,2]
[393341906,1762493441048,-150.07,0.000188,2]
[393341907,1762493441057,-150.07,0.000188,2]
[393341908,1762493441066,-150.07,0.000188,2]
[393341909,1762493441076,-150.07,0.000188,2]
[393341910,1762493441085,-150.07,0.000188,2]
[393341911,1762493441093,-150.07,0.000188,2]
[393341912,1762493441102,-150.07,0.000188,2]
[393341913,1762493441112,-150.07,0.000188,2]
[393341914,1762493441121,-150.07,0.000188,2]
[393341915,1762493441130,-150.07,0.000188,2]
[393341916,1762493441139,-150.07,0.000188,2]
[393341917,1762493441148,-150.07,0.000188,2]
[393341918,1762493441157,-150.07,0.000188,2]
[393341919,1762493441166,-150.07,0.000188,2]
[393341920,1762493441175,-150.07,0.000188,2]
[393341921,1762493441184,-150.07,0.000188,2]
[393341922,1762493441193,-150.07,0.000188,2]
[393341923,1762493441202,-150.07,0.000188,2]
[393341924,1762493441211,-150.07,0.000188,2]
[393341925,1762493441220,-150.07,0.000188,2]
[393341926,1762493441231,-150.07,0.000188,2]
[393341927,1762493441240,-150.07,0.000188,2]
[393341928,1762493441250,-150.07,0.000188,2]
[393341929,1762493441259,-150.07,0.000188,2]
[393341930,1762493441269,-150.07,0.000188,2]
[393341931,1762493441278,-150.07,0.000188,2]
[393341932,1762493441287,-150.07,0.000188,2]
[393341933,1762493441296,-150.07,0.000188,2]
[393341934,1762493441306,-150.07,0.000188,2]
[393341935,1762493441315,-150.07,0.000188,2]
[393341936,1762493441325,-150.07,0.000188,2]
[393341937,1762493441334,-150.07,0.000188,2]
[393341938,1762493441343,-150.07,0.000188,2]
[393341939,1762493441352,-150.07,0.000188,2]
[393341940,1762493441362,-150.07,0.000188,2]
[393341941,1762493441371,-150.07,0.000188,2]
[393341942,1762493441380,-150.07,0.000188,2]
[393341943,1762493441390,-150.07,0.000188,2]
[393341944,1762493441399,-150.07,0.000188,2]
[393341945,1762493441408,-1200.0,0.00018834,2]
[393341946,1762493441417,-500.40959202,0.00018837,2]
[393341947,1762493441426,-500.0,0.00018837,2]
[393341948,1762493441436,-635.57618945,0.00018837,2]
[393341949,1762493441445,-500.0,0.00018837,2]
[393341950,1762493441454,-465.14690898,0.00018837,2]
[393341951,1762493441463,-500.77100973,0.00018837,2]
[393341952,1762493441473,-463.607732,0.00018837,2]
[393341953,1762493441482,-500.85457018,0.00018837,2]
[393341954,1762493441491,-158.19215752,0.00018837,2]
[393341955,1762493441499,-500.0935881,0.00018837,2]
[393341956,1762493441507,-500.0,0.00018837,2]
[393341957,1762493441516,-500.0,0.00018837,2]
[393341958,1762493441526,-500.0,0.00018837,2]
[393341959,1762493441535,-546.44,0.00018904,2]
[393341960,1762493441544,-300.0,0.00018973,2]
[393341961,1762493441553,-250.0,0.00018974,2]
[393341962,1762493441562,-50270.06075699,0.00019,2]
[393341963,1762493441571,-300.0,0.00019,2]
[393341964,1762493441581,-1504.43139356,0.00019068,2]
[393341965,1762493441590,-1500.0,0.00019068,2]
[393341966,1762493441600,-312.81959123,0.00019068,2]
[393341967,1762493441609,-1500.0,0.00019068,2]
[393341968,1762493441618,-1500.0,0.00019068,2]
[393341969,1762493441627,-1500.0,0.00019068,2]
[393341970,1762493441636,-1503.58550355,0.00019068,2]
[393341971,1762493441645,-1004.28126932,0.00019068,2]
[393341972,1762493441654,-1500.0,0.00019068,2]
[393341973,1762493441663,-273.74711328,0.00019132,2]
[393341974,1762493441672,-546.44,0.00019178,2]
[393341975,1762493441682,-716.85911878,0.00019328,2]
[393341976,1762493441692,-1000.0,0.00019328,2]
[393341977,1762493441701,-1000.0,0.00019328,2]
[393341978,1762493441710,-1000.0,0.00019328,2]
[393341979,1762493441719,-1000.0,0.00019328,2]
[393341980,1762493441729,-1000.0,0.00019328,2]
[393341981,1762493441738,-501.0611995,0.00019328,2]
[393341982,1762493441748,-1000.0,0.00019328,2]
[393341983,1762493441757,-1013.74679932,0.00019328,2]
[393341984,1762493441767,-1000.0,0.00019385,2]
[393341985,1762493441777,-1000.0,0.00019385,2]
[393341986,1762493441787,-1000.0,0.00019385,2]
[393341987,1762493441796,-1000.0,0.00019385,2]
[393341988,1762493441806,-1000.0,0.00019385,2]
[393341989,1762493441815,-1000.0,0.00019438,2]
[393341990,1762493441825,-546.4858114,0.00019452,2]
[393341991,1762493441834,-640.36804531,0.00019453,2]
[393341992,1762493441844,-1002.54057635,0.00019616,2]
[393341993,1762493441853,-1000.0,0.00019616,2]
[393341994,1762493441863,-2000.0,0.00019616,2]
[393341995,1762493441871,-2000.0,0.00019616,2]
[393341996,1762493441881,-504.14266789,0.00019616,2]
[393341997,1762493441891,-823.0,0.00019663,2]
[393341998,1762493441900,-1500.0,0.00019876,2]
[393341999,1762493441910,-1522.61319105,0.00019876,2]
[393342000,1762493441920,-810.85902672,0.00019876,2]
[393342001,1762493441929,-1500.0,0.00019876,2]
[393342002,1762493441939,-1500.0,0.00019876,2]
[393342003,1762493441948,-644.81873748,0.00019876,2]
[393342004,1762493441958,-4874.77299672,0.000199,3]
[393342005,1762493441967,-1500.0,0.00019933,2]
[393342006,1762493441977,-1500.0,0.00019933,2]
[393342007,1762493441987,-1392.14835424,0.00019933,2]
[393342008,1762493441996,-1373.81755517,0.00019933,2]
[393342009,1762493442006,-1500.0,0.00019933,2]
[393342010,1762493442015,-300.0,0.00019949,2]
[393342011,1762493442024,-333.0551169,0.00019949,2]
[393342012,1762493442037,-109264.24556484,0.0001995,15]
[393342013,1762493442046,-3292.0,0.00019964,2]
[393342014,1762493442055,-150.0,0.00019973,2]
[393342015,1762493442065,-182.48752422,0.00019974,2]
[393342016,1762493442075,-300.0,0.00019999,2]
[393342017,1762493442084,-10820.30702064,0.0002,2]
[393342018,1762493442093,-1519.51893016,0.0002,2]
[393342019,1762493442103,-25361.98694477,0.0002,2]
[393342020,1762493442113,-4655.83971353,0.0002,2]
[393342021,1762493442122,-180379.71891958,0.0002,5]
[393342022,1762493442131,-8300.0,0.0002,4]
[393342023,1762493442141,-3950.0,0.0002,2]
[393342024,1762493442150,-462.96784881,0.0002,20]
[393342025,1762493442159,-2048.58691759,0.0002,14]
[393342026,1762493442168,-7225.11979424,0.0002,2]
[393342027,1762493442177,-1283.0616566,0.0002,2]
[393342028,1762493442186,-7310.04820368,0.0002,2]
[393342029,1762493442195,-2168.59057824,0.0002,3]
[393342030,1762493442204,-10163.70752487,0.0002,2]
[393342031,1762493442213,-1035.63503276,0.0002,2]
[393342032,1762493442223,-2838.06808516,0.0002,2]
[393342033,1762493442232,-8731.3976056,0.0002,2]
[393342034,1762493442242,-1000.0,0.0002,7]
[393342035,1762493442251,-9007.98855927,0.0002001,2]
[393342036,1762493442260,-1252.0,0.00020024,2]
[393342037,1762493442270,-1000.0,0.00020116,2]
[393342038,1762493442279,-2500.0,0.00020164,2]
[393342039,1762493442289,-2500.0,0.00020164,2]
[393342040,1762493442298,-825.89,0.00020187,2]
[393342041,1762493442307,-640.36804531,0.00020217,2]
[393342042,1762493442317,-2087.9034712,0.00020424,2]
[393342043,1762493442326,-383.14812579,0.00020424,2]
[393342044,1762493442336,-2000.0,0.00020424,2]
[393342045,1762493442345,-2147.04253758,0.00020481,2]
[393342046,1762493442355,-1560.77369819,0.00020481,2]
[393342047,1762493442364,-1003.85054346,0.00020481,2]
[393342048,1762493442373,-206.61212239,0.00020515,2]
[393342049,1762493442382,-205.58522931,0.00020515,2]
[393342050,1762493442391,-274.02086039,0.00020515,2]
[393342051,1762493442401,-205.78958001,0.00020515,2]
[393342052,1762493442410,-250.0,0.00020521,2]
[393342053,1762493442420,-151.0,0.00020548,7]
[393342054,1762493442429,-22351.71985182,0.000207,2]
[393342055,1762493442445,-2301.0420686,0.00020712,2]
[393342056,1762493442458,-3000.0,0.00020712,2]
[393342057,1762493442468,-1000.0,0.00020795,2]
[393342058,1762493442478,-500.0,0.000209,7]
[393342059,1762493442488,-300.0,0.000209,7]
[393342060,1762493442497,-2535.98606181,0.00020972,2]
[393342061,1762493442507,-640.36804531,0.00020981,2]
[393342062,1762493442516,-20000.0,0.00021,2]
[393342063,1762493442526,-41417.27131563,0.00021,2]
[393342064,1762493442535,-1182.05722643,0.00021,2]
[393342065,1762493442545,-195.11524369,0.00021,2]
[393342066,1762493442554,-350.0,0.00021,2]
[393342067,1762493442564,-500.0,0.00021025,2]
[393342068,1762493442573,-352.75556532,0.00021068,2]
[393342069,1762493442583,-308.85599281,0.0002126,2]
[393342070,1762493442592,-300.0,0.00021499,2]
[393342071,1762493442601,-57433.0218314,0.000215,2]
[393342072,1762493442610,-220.0416091,0.000215,2]
[393342073,1762493442620,-1152.0,0.0002152,2]
[393342074,1762493442633,-2129.0,0.00021539,2]
[393342075,1762493442643,-640.36804531,0.00021744,2]
[393342076,1762493442652,-500.0,0.00021917,2]
[393342077,1762493442661,-500.0,0.00021917,2]
[393342078,1762493442671,-500.0,0.00021917,2]
[393342079,1762493442681,-500.0,0.00021917,2]
[393342080,1762493442690,-500.0,0.00021917,2]
[393342081,1762493442700,-305.0,0.00021917,2]
[393342082,1762493442711,-4609.0,0.0002196,2]
[393342083,1762493442720,-300.0,0.00021999,2]
[393342084,1762493442730,-117767.25402134,0.00022,4]
[393342085,1762493442740,-4107.82408963,0.00022,2]
[393342086,1762493442749,-788.15321484,0.00022,7]
[393342087,1762493442759,-160.97,0.00022,2]
[393342088,1762493442768,-489.8069685,0.000221,2]
[393342089,1762493442778,-238.0016999,0.0002211,2]
[393342090,1762493442788,-155.09,0.00022127,2]
[393342091,1762493442798,-152.07,0.00022263,2]
[393342092,1762493442808,-35159.08642138,0.000225,2]
[393342093,1762493442818,-640.36804531,0.00022508,2]
[393342094,1762493442828,-1475.08845669,0.00022569,2]
[393342095,1762493442842,-500.0,0.00022611,2]
[393342096,1762493442852,-517.95567933,0.0002271,2]
[393342097,1762493442862,-19202.56589629,0.000229,2]
[393342098,1762493442872,-628.25562574,0.00023,7]
[393342099,1762493442882,-435.52331328,0.00023,2]
[393342100,1762493442892,-997.68735176,0.00023,2]
[393342101,1762493442902,-400.0,0.00023,2]
[393342102,1762493442912,-2560.26705146,0.000231,2]
[393342103,1762493442922,-2299.0,0.00023143,2]
[393342104,1762493442932,-51657.89405864,0.000232,2]
[393342105,1762493442942,-209.475628,0.000232,7]
[393342106,1762493442951,-151.0,0.000232,7]
[393342107,1762493442961,-151.0,0.000232,7]
[393342108,1762493442971,-151.0,0.000232,7]
[393342109,1762493442981,-151.0,0.000232,7]
[393342110,1762493442991,-151.0,0.000232,7]
[393342111,1762493443001,-151.0,0.000232,7]
[393342112,1762493443011,-296.415688,0.000232,7]
[393342113,1762493443020,-151.0,0.000232,7]
[393342114,1762493443115,-215.927753,0.000232,7]
[393342116,1762493443125,-215.927753,0.000232,7]
[393342118,1762493443135,-215.927753,0.000232,7]
[393342120,1762493443144,-215.927753,0.000232,7]
[393342122,1762493443153,-151.0,0.000232,7]
[393342124,1762493443166,-151.0,0.000232,7]
[393342126,1762493443175,-156.582746,0.000232,7]
[393342128,1762493443184,-151.0,0.000232,7]
[393342130,1762493443194,-325.61957,0.000232,7]
[393342132,1762493443203,-325.61957,0.000232,7]
[393342134,1762493443212,-325.61957,0.000232,7]
[393342136,1762493443221,-153.823368,0.000232,7]
[393342137,1762493443231,-325.61957,0.000232,7]
[393342138,1762493443239,-444.177099,0.000232,7]
[393342139,1762493443248,-151.0,0.000232,7]
[393342140,1762493443257,-444.177099,0.000232,7]
[393342141,1762493443266,-444.177099,0.000232,7]
[393342142,1762493443275,-151.0,0.000232,7]
[393342143,1762493443284,-444.177099,0.000232,7]
[393342144,1762493443294,-151.0,0.000232,7]
[393342145,1762493443303,-151.0,0.000232,7]
[393342146,1762493443312,-640.36804531,0.00023272,2]
[393342147,1762493443321,-11563.9880708,0.00023333,7]
[393342148,1762493443330,-200.0,0.000235,2]
[393342149,1762493443340,-1613.0,0.00023552,2]
[393342150,1762493443350,-500.0,0.00023832,2]
[393342151,1762493443359,-1010.66587826,0.00024,2]
[393342152,1762493443372,-1029.79555358,0.00024,14]
[393342153,1762493443381,-3600.0,0.00024,2]
[393342154,1762493443390,-16048.0046882,0.00024,2]
[393342155,1762493443399,-640.36804531,0.00024036,2]
[393342156,1762493443408,-500.0,0.00024106,2]
[393342157,1762493443417,-6453.0,0.00024156,2]
[393342158,1762493443426,-162.35810273,0.0002416,2]
[393342159,1762493443440,-417.56704257,0.0002421,2]
[393342160,1762493443449,-3658.97332196,0.0002421,2]
[393342161,1762493443458,-162.14577741,0.0002455,15]
[393342162,1762493443468,-591.38327274,0.0002465,2]
[393342163,1762493443477,-500.0,0.00024799,2]
[393342164,1762493443486,-640.36804531,0.000248,2]
[393342165,1762493443497,-581023.130308,0.000248,3]
[393342166,1762493443507,-151.0,0.000248,7]
[393342167,1762493443518,-260.822538,0.000248,7]
[393342168,1762493443527,-260.822538,0.000248,7]
[393342169,1762493443538,-260.822538,0.000248,7]
[393342170,1762493443550,-182.48752422,0.000248,2]
[393342171,1762493443559,-260.822538,0.000248,7]
[393342172,1762493443568,-151.0,0.000248,7]
[393342173,1762493443577,-151.0,0.000248,7]
[393342174,1762493443586,-165.39845766,0.000248,30]
[393342175,1762493443595,-4712.682587,0.000248,7]
[393342176,1762493443604,-4712.682587,0.000248,7]
[393342177,1762493443613,-151.0,0.000248,7]
[393342178,1762493443623,-4712.682587,0.000248,7]
[393342179,1762493443632,-4712.682587,0.000248,7]
[393342180,1762493443641,-151.0,0.000248,7]
[393342181,1762493443650,-1475.08845669,0.00024867,2]
[393342182,1762493443659,-157.51553146,0.000249,2]
[393342183,1762493443669,-575854.699129,0.000249,3]
[393342184,1762493443678,-2000.01,0.00025,2]
[393342185,1762493443687,-601.49527831,0.00025,2]
[393342186,1762493443695,-205.06591834,0.00025,2]
[393342187,1762493443704,-1763.69844896,0.00025,2]
[393342188,1762493443713,-17069.30099595,0.00025,2]
[393342189,1762493443722,-2741.27148346,0.00025,3]
[393342190,1762493443731,-360.0,0.00025,2]
[393342191,1762493443740,-3782.63999888,0.00025,2]
[393342192,1762493443752,-216.9027013,0.00025,21]
[393342193,1762493443761,-3007.4294775,0.00025,2]
[393342194,1762493443771,-12049.96528955,0.00025,2]
[393342195,1762493443780,-1051.41139429,0.00025,2]
[393342196,1762493443790,-165.25328451,0.00025,2]
[393342197,1762493443800,-100286.44598035,0.00025,2]
[393342198,1762493443810,-151.0,0.00025,7]
[393342199,1762493443819,-156.697005,0.00025,7]
[393342200,1762493443829,-151.0,0.00025,7]
[393342201,1762493443839,-151.0,0.00025,7]
[393342202,1762493443848,-151.0,0.00025,7]
[393342203,1762493443857,-188.461222,0.00025,7]
[393342204,1762493443867,-450.0,0.00025,2]
[393342205,1762493443876,-215.927753,0.00025,7]
[393342206,1762493443886,-215.927753,0.00025,7]
[393342207,1762493443896,-215.927753,0.00025,7]
[393342208,1762493443905,-215.927753,0.00025,7]
[393342209,1762493443914,-151.0,0.00025,7]
[393342210,1762493443923,-151.0,0.00025,7]
[393342211,1762493443933,-151.0,0.00025,7]
[393342212,1762493443942,-325.61957,0.00025,7]
[393342213,1762493443953,-325.61957,0.00025,7]
[393342214,1762493443963,-325.61957,0.00025,7]
[393342215,1762493443973,-325.61957,0.00025,7]
[393342216,1762493443983,-444.177099,0.00025,7]
[393342217,1762493443992,-444.177099,0.00025,7]
[393342218,1762493444001,-151.0,0.00025,7]
[393342219,1762493444011,-444.177099,0.00025,7]
[393342220,1762493444020,-151.0,0.00025,7]
[393342221,1762493444029,-444.177099,0.00025,7]
[393342222,1762493444040,-151.0,0.00025,7]
[393342223,1762493444050,-377.24,0.00025028,2]
[393342224,1762493444060,-592.47248963,0.00025418,2]
[393342225,1762493444070,-192.32,0.00025524,2]
[393342226,1762493444081,-215.47,0.00025756,2]
[393342227,1762493444091,-1408.0,0.00025777,2]
[393342228,1762493444101,-18088.70531115,0.00025879,2]
[393342229,1762493444113,-593.38270156,0.0002599,2]
[393342230,1762493444124,-4469.63207177,0.00026,2]
[393342231,1762493444134,-4138.65,0.00026,2]
[393342232,1762493444144,-21134.85870964,0.00026,2]
[393342233,1762493444153,-213.84136667,0.00026,2]
[393342234,1762493444162,-160.96188225,0.00026,2]
[393342235,1762493444171,-255.29,0.00026,2]
[393342236,1762493444180,-27151.41005091,0.000264,2]
[393342237,1762493444190,-9035.0,0.00026572,2]
[393342238,1762493444200,-500.0,0.0002664,2]
[393342239,1762493444209,-1000.0,0.00026667,7]
[393342240,1762493444219,-159.918,0.00026676,2]
[393342241,1762493444230,-1153.0,0.00026676,2]
[393342242,1762493444239,-2192.024,0.00026676,2]
[393342243,1762493444248,-612.145,0.00026676,2]
[393342244,1762493444256,-596.318,0.00026676,2]